bitfinex/quotes_ETHUSD_20241122
["timestamp","ask_amount","ask_price","bid_price","bid_amount"]
[1732315019811,0.1493577,3310.8,3310.6,1.98070297]
[1732315020016,0.9277577,3310.8,3310.7,0.03655963]
[1732315020526,0.55,3310.7,3309.7,0.38599781]
[1732315020711,0.7784,3310.4,3309.8,0.03655963]
[1732315021123,0.55,3310.3,3309.8,0.03655963]
[1732315021320,0.55,3310.5,3309.8,0.03655963]
[1732315021321,0.7784,3310.2,3309.8,0.38599781]
[1732315021555,0.7784,3310.2,3309.9,0.03655963]
[1732315022152,0.7784,3310.4,3308.7,1.57434361]
[1732315022359,0.55,3310.1,3308.8,0.03655963]
[1732315022653,0.7784,3310.0,3308.8,0.03655963]
[1732315022850,0.55,3310.1,3308.8,0.03655963]
[1732315022851,0.55,3309.7,3308.8,0.03655963]
[1732315023025,0.7784,3309.4,3308.8,0.03655963]
[1732315023416,0.7784,3309.4,3308.8,0.41929728]
[1732315024123,0.7784,3309.4,3308.9,0.38273765]
[1732315024331,0.7784,3309.4,3308.9,0.41809081]
[1732315026241,0.7784,3309.4,3308.9,0.03535316]
[1732315026555,0.7784,3309.4,3308.5,0.41295691]
[1732315026730,0.7784,3309.4,3309.0,0.03595527]
[1732315026941,0.7784,3309.4,3308.6,0.38273765]
[1732315027119,0.7784,3309.4,3309.1,0.03595527]
[1732315027467,0.7784,3309.4,3308.6,0.38273765]
[1732315027670,0.7784,3309.4,3309.2,0.03595527]
[1732315027821,0.7784,3309.4,3308.6,0.38273765]
[1732315028016,0.7784,3309.4,3309.3,0.03595527]
[1732315028218,0.7784,3309.4,3308.6,0.38273765]
[1732315028219,0.7784,3309.2,3307.1,1.55093354]
[1732315028465,0.7784,3308.9,3307.2,0.03022508]
[1732315028764,0.7784,3308.6,3307.3,1.58827756]
[1732315028970,0.7784,3308.6,3307.3,1.62191371]
[1732315029118,0.7784,3308.4,3307.3,0.03363615]
[1732315029467,0.7784,3308.0,3306.0,2.36161583]
[1732315029636,0.7784,3308.0,3307.4,0.03147098]
[1732315029836,0.7784,3308.0,3306.2,1.58656595]
[1732315030146,0.7784,3308.0,3306.4,1.55042915]
[1732315030346,0.7884,3308.0,3306.3,1.57391828]
[1732315030533,0.7884,3308.0,3306.5,0.03160266]
[1732315030784,0.7884,3308.0,3306.3,1.51208243]
[1732315030785,0.7884,3308.0,3306.2,1.58656595]
[1732315030931,0.7884,3308.0,3306.6,0.03164657]
[1732315031161,0.7784,3308.0,3306.4,0.03023922]
[1732315031365,0.7784,3308.0,3306.7,0.37048469]
[1732315031668,0.7784,3308.0,3306.8,0.83483238]
[1732315031817,0.7784,3308.0,3306.9,0.88883812]
[1732315032023,0.7784,3308.0,3307.0,0.03023103]
[1732315032250,0.7784,3308.0,3307.1,0.33883812]
[1732315032562,0.7978,3309.3,3307.2,0.58022964]
[1732315032722,0.7978,3309.3,3307.4,1.3546]
[1732315032922,0.7978,3309.3,3307.6,2.08591017]
[1732315033168,0.7978,3309.3,3307.7,0.36905959]
[1732315033367,0.7978,3309.3,3307.9,0.8046]
[1732315033665,0.7978,3309.3,3308.0,0.58021787]
[1732315033821,0.7978,3309.3,3308.0,0.95066597]
[1732315034474,0.7978,3309.3,3308.0,2.54398691]
[1732315037436,0.7978,3309.3,3308.1,1.56212233]
[1732315037722,0.7978,3309.3,3308.3,0.55]
[1732315038066,0.01,3310.7,3308.7,1.57434361]
[1732315038067,0.83,3310.7,3308.7,1.57434361]
[1732315038239,0.83,3310.7,3308.8,0.03021012]
[1732315038442,0.83,3310.7,3309.0,0.55]
[1732315038629,0.83,3310.7,3309.1,0.03021014]
[1732315038837,0.83,3310.7,3309.1,0.06162408]
[1732315039157,0.83,3310.7,3309.3,2.42649576]
[1732315039329,0.83,3310.7,3309.4,0.03020787]
[1732315039531,0.83,3310.7,3309.4,2.14483129]
[1732315039735,0.83,3310.7,3309.5,0.58129551]
[1732315039964,0.83,3310.7,3309.6,0.03020516]
[1732315040426,0.83,3310.7,3309.7,0.03129551]
[1732315040630,0.83,3310.7,3309.8,0.03020517]
[1732315041067,0.83,3310.7,3309.9,0.03109958]
[1732315047689,0.83,3310.7,3309.1,1.53876118]
[1732315047980,0.83,3310.7,3308.0,0.01]
[1732315047981,0.83,3310.7,3308.9,1.51810539]
[1732315048283,0.84,3310.7,3309.2,0.03004579]
[1732315048469,0.84,3310.7,3309.1,0.02902735]
[1732315048677,0.84,3310.7,3308.8,1.54937648]
[1732315048985,0.84,3310.7,3308.9,1.51810539]
[1732315049186,0.84,3310.7,3308.8,1.8882146]
[1732315049495,0.84,3310.7,3308.9,1.85694351]
[1732315049701,0.84,3310.7,3308.9,1.88597086]
[1732315050002,0.83,3310.4,3308.9,1.88597086]
[1732315050300,0.83,3310.4,3309.0,0.33883812]
[1732315050676,0.83,3310.4,3309.1,0.02909459]
[1732315051199,0.55,3310.3,3309.1,0.02909459]
[1732315051409,0.7749,3310.2,3309.1,0.02909459]
[1732315051609,0.7749,3310.2,3308.5,1.86846043]
[1732315051811,0.7749,3310.2,3308.6,0.249948]
[1732315052011,0.7749,3310.2,3308.7,0.22078615]
[1732315052166,0.7749,3310.2,3308.8,0.02917794]
[1732315052481,0.7749,3310.2,3308.9,0.22078615]
[1732315052684,0.7749,3310.2,3309.0,0.22078615]
[1732315052882,0.7749,3310.2,3309.1,0.22075117]
[1732315053077,0.7749,3310.2,3309.1,0.02917794]
[1732315053488,0.7749,3310.2,3308.5,0.33883812]
[1732315053713,0.7749,3310.2,3309.2,0.02917794]
[1732315054006,0.7749,3310.2,3309.3,0.02917794]
[1732315054208,0.7749,3310.2,3308.5,0.33883812]
[1732315054504,0.7749,3310.2,3308.6,0.02917794]
[1732315055124,0.56,3309.9,3308.6,0.02917794]
[1732315055401,0.7749,3309.8,3308.5,0.33883812]
[1732315055606,0.7749,3309.8,3308.6,0.02823897]
[1732315055777,0.7749,3309.8,3308.2,0.33883812]
[1732315055979,0.7749,3309.8,3308.3,0.02825067]
[1732315056179,0.55,3309.7,3308.3,0.36708879]
[1732315056381,0.56,3309.9,3308.3,0.36708879]
[1732315056382,0.55,3309.5,3308.3,0.36708879]
[1732315056703,0.7601,3309.4,3308.3,0.36708879]
[1732315057014,0.7601,3309.0,3308.3,0.02825067]
[1732315057229,0.01,3309.5,3307.8,1.59406751]
[1732315057230,0.7601,3308.8,3307.8,1.59406751]
[1732315057609,0.7601,3308.6,3307.9,0.02827407]
[1732315057811,0.7601,3308.6,3308.0,1.59332094]
[1732315058129,0.7601,3308.6,3307.7,0.33883812]
[1732315058130,0.7601,3308.6,3307.8,1.59406751]
[1732315058716,0.7601,3308.6,3308.0,1.59332094]
[1732315059107,0.7601,3308.6,3307.8,1.59406751]
[1732315059310,0.7601,3308.6,3308.1,0.02827407]
[1732315059490,0.7601,3308.6,3307.7,0.33883812]
[1732315059491,0.7601,3308.6,3307.8,1.59406751]
[1732315059817,0.7601,3308.6,3308.0,1.59332094]
[1732315060024,0.7601,3308.6,3308.1,0.0283516]
[1732315060207,0.7601,3308.6,3308.0,1.59332094]
[1732315060415,0.7601,3308.6,3308.1,0.0283516]
[1732315060920,0.55,3308.5,3308.1,0.0283516]
[1732315061923,0.7601,3308.6,3308.1,1.95953935]
[1732315062225,0.8254,3310.0,3308.2,0.36906357]
[1732315062393,0.8254,3310.0,3308.3,1.58974065]
[1732315062720,0.8254,3310.0,3308.4,1.88661274]
[1732315063093,0.8254,3310.0,3308.5,0.02848615]
[1732315063623,0.02,3310.3,3308.5,0.02848615]
[1732315063624,0.55,3309.9,3308.5,0.02848615]
[1732315063918,0.8254,3309.8,3308.5,0.02848615]
[1732315065092,0.8254,3309.6,3308.5,0.02848615]
[1732315065294,0.55,3309.3,3308.5,0.02848615]
[1732315065508,0.55,3309.5,3308.5,0.02848615]
[1732315065680,0.8254,3309.2,3308.5,0.02848615]
[1732315066133,0.8254,3309.2,3307.9,1.52892471]
[1732315066426,0.99048,3309.2,3307.9,1.52892471]
[1732315066631,0.99048,3309.2,3308.1,1.56212233]
[1732315066783,0.99048,3309.2,3307.9,0.3690615]
[1732315066784,0.55,3308.9,3307.9,0.33883812]
[1732315066992,0.8254,3308.6,3308.0,0.02749278]
[1732315067490,0.8254,3308.6,3308.1,0.02753812]
[1732315067989,0.8254,3308.6,3308.2,0.02670547]
[1732315068185,0.8254,3308.6,3307.4,1.52738626]
[1732315068408,0.8254,3308.6,3307.5,0.02670547]
[1732315068609,0.8254,3308.6,3307.5,1.58246317]
[1732315069389,0.8254,3308.6,3307.6,0.03022966]
[1732315069642,0.8254,3308.6,3307.7,0.02672303]
[1732315069818,0.8254,3308.6,3307.8,1.59406751]
[1732315070128,0.8254,3308.6,3308.0,1.59332094]
[1732315070493,0.8254,3308.6,3308.1,1.56212233]
[1732315070692,0.8254,3308.6,3308.2,1.58977768]
[1732315071304,0.8254,3308.6,3308.3,0.02670254]
[1732315071738,0.8254,3308.6,3307.9,1.52892471]
[1732315072108,0.8254,3308.6,3307.8,0.33883812]
[1732315072109,0.8254,3308.6,3308.1,1.56212233]
[1732315072612,0.8254,3308.6,3308.2,1.61648022]
[1732315074703,0.7842,3309.3,3308.2,1.61648022]
[1732315074896,0.7842,3309.1,3308.2,1.61648022]
[1732315075948,0.8254,3309.4,3307.1,0.33883812]
[1732315075949,0.55,3308.8,3307.1,0.33883812]
[1732315076149,0.55,3308.6,3307.2,1.56979793]
[1732315076301,0.7614,3308.5,3307.2,1.56979793]
[1732315076996,0.55,3308.4,3307.2,1.56979793]
[1732315077195,0.55,3308.2,3307.2,1.56979793]
[1732315077426,0.7614,3308.1,3306.7,1.59877718]
[1732315077935,0.7614,3307.9,3306.2,1.58656595]
[1732315078137,0.7614,3307.9,3306.4,1.55042915]
[1732315078436,0.7614,3307.9,3306.6,1.5047075]
[1732315078737,0.7614,3307.9,3306.8,1.50670781]
[1732315080437,0.7614,3307.9,3306.7,1.59877718]
[1732315082406,0.55,3308.0,3306.6,1.84354562]
[1732315082407,0.52290259,3308.0,3306.6,1.84354562]
[1732315082748,0.52290259,3308.0,3306.2,0.03023579]
[1732315082749,0.52290259,3308.0,3306.2,1.92540407]
[1732315083214,0.2810767,3307.9,3306.2,1.92540407]
[1732315083839,0.52290259,3308.0,3307.9,0.0047661]
[1732315084000,0.01,3307.8,3305.5,1.55500466]
[1732315084198,0.01,3307.8,3305.1,0.8063]
[1732315084199,0.01,3307.4,3305.4,1.8836245]
[1732315084399,0.01,3307.4,3305.2,0.03024428]
[1732315084400,0.55,3307.2,3305.2,1.53058372]
[1732315084927,0.01,3307.1,3304.9,1.53488997]
[1732315085251,0.55,3307.0,3304.9,1.56514019]
[1732315085537,0.44965034,3307.9,3304.9,1.56514019]
[1732315085538,0.55,3307.5,3305.0,2.71241428]
[1732315085856,0.8108,3307.6,3305.3,0.8063]
[1732315086004,0.8108,3307.6,3305.5,2.36130466]
[1732315086205,0.8108,3307.6,3305.6,0.36907828]
[1732315086400,0.8108,3307.6,3305.9,1.51282007]
[1732315086632,0.8108,3307.6,3305.8,0.8063]
[1732315086633,0.8108,3307.6,3306.1,1.55878373]
[1732315086907,0.8108,3307.6,3306.3,1.51208243]
[1732315087522,0.8108,3307.6,3306.0,1.53671583]
[1732315087774,0.8108,3307.6,3306.0,1.56695447]
[1732315088133,0.8108,3307.4,3305.9,1.51282007]
[1732315088335,0.8108,3307.4,3305.8,1.50918448]
[1732315089552,0.8108,3307.4,3305.9,1.51282007]
[1732315091659,0.55,3307.3,3305.5,1.55500466]
[1732315091823,0.55,3307.1,3305.5,1.55500466]
[1732315092158,0.771,3307.0,3305.5,1.55500466]
[1732315092374,0.771,3307.0,3305.7,1.54410758]
[1732315092537,0.771,3307.0,3305.8,1.50918448]
[1732315092860,0.771,3307.0,3305.7,0.03024583]
[1732315092861,0.771,3307.0,3305.5,1.58525049]
[1732315093059,0.55,3306.9,3305.3,0.00644458]
[1732315093245,0.55,3306.7,3305.3,0.00644458]
[1732315093446,0.771,3306.6,3305.3,0.00644458]
[1732315094164,0.771,3306.4,3305.3,0.00644458]
[1732315094848,0.771,3306.3,3305.3,0.00644458]
[1732315095028,0.771,3306.2,3305.3,0.00644458]
[1732315095373,0.771,3306.2,3305.4,1.54478638]
[1732315095527,0.771,3306.2,3305.4,1.89835528]
[1732315096380,0.771,3306.2,3305.4,1.54478638]
[1732315096669,0.771,3306.3,3305.6,2.37722249]
[1732315096967,0.771,3306.3,3305.8,1.50918448]
[1732315097169,0.771,3306.3,3305.9,0.3535689]
[1732315097378,0.771,3306.3,3306.1,2.10878373]
[1732315097559,0.771,3306.3,3306.2,0.55]
[1732315097762,0.01,3308.5,3306.2,0.55]
[1732315097943,0.7915,3308.3,3306.3,0.03023864]
[1732315098260,0.7915,3308.3,3306.5,0.55]
[1732315098427,0.7915,3308.3,3306.6,0.03023417]
[1732315098865,0.7915,3308.3,3306.5,0.55]
[1732315099072,0.7915,3308.1,3306.6,0.0302342]
[1732315100375,0.7915,3308.1,3306.9,1.5834317]
[1732315100672,0.7915,3308.1,3306.7,0.55]
[1732315100907,0.7915,3308.1,3307.0,1.59581892]
[1732315101227,0.7915,3308.1,3306.8,1.50670781]
[1732315101470,0.7915,3308.1,3306.7,2.14877718]
[1732315101667,0.7915,3308.1,3306.1,1.55878373]
[1732315101871,0.7915,3307.9,3306.1,1.55878373]
[1732315102198,0.8015,3307.9,3306.1,1.55878373]
[1732315102384,0.7915,3307.7,3306.1,1.55878373]
[1732315102831,0.7915,3307.7,3306.1,1.91235263]
[1732315103031,0.7915,3307.7,3305.6,0.03024239]
[1732315103032,0.7915,3307.7,3306.3,1.51208243]
[1732315104472,0.7915,3307.5,3306.4,0.55]
[1732315104679,0.7915,3307.5,3306.4,0.9035689]
[1732315105033,0.7915,3307.5,3306.8,0.55]
[1732315106678,0.7915,3307.5,3306.7,0.55]
[1732315109085,0.7915,3307.5,3306.9,2.1334317]
[1732315109242,0.7915,3307.5,3307.1,1.55093354]
[1732315109442,0.7915,3308.3,3307.2,2.50360051]
[1732315109844,0.7915,3308.3,3307.2,2.47336683]
[1732315110193,0.199768,3308.2,3307.2,2.47336683]
[1732315110345,0.199768,3308.2,3307.3,0.03023301]
[1732315110683,0.199768,3308.2,3307.4,0.55]
[1732315110993,0.7915,3308.3,3307.5,0.03023077]
[1732315111158,0.7915,3308.3,3307.5,0.3535689]
[1732315111358,0.7915,3308.3,3307.6,0.55]
[1732315112187,0.7915,3308.3,3307.7,0.55]
[1732315113685,0.7915,3308.3,3307.9,0.55]
[1732315114121,0.7915,3308.3,3308.1,0.55]
[1732315114483,0.7915,3308.3,3308.2,0.9035689]
[1732315114680,0.7915,3308.3,3308.2,1.12513332]
[1732315114879,0.7915,3308.3,3308.2,0.9035689]
[1732315115085,1.20618,3308.4,3308.2,0.9035689]
[1732315115086,1.20618,3308.4,3308.3,0.55]
[1732315115398,1.20618,3308.4,3308.3,1.12511401]
[1732315116217,1.20618,3308.4,3308.3,1.08511401]
[1732315116412,1.20618,3308.4,3308.3,0.8635689]
[1732315116617,1.20618,3308.4,3308.3,2.42476781]
[1732315116926,1.20618,3308.4,3308.3,2.64624668]
[1732315117123,1.20618,3308.4,3308.3,3.41994668]
[1732315120036,1.20618,3308.4,3308.3,3.19846781]
[1732315120238,1.20618,3308.4,3307.9,0.7737]
[1732315120438,1.20618,3308.4,3307.7,1.51384413]
[1732315120732,1.20618,3308.4,3307.7,1.86741303]
[1732315120941,1.20618,3308.4,3307.6,0.80392242]
[1732315120942,1.20618,3308.4,3307.9,1.52892471]
[1732315121171,1.20618,3308.4,3307.9,1.88249361]
[1732315121546,1.20618,3308.4,3308.0,1.59332094]
[1732315121874,1.20618,3308.4,3307.9,0.3535689]
[1732315122437,1.20618,3308.4,3308.0,0.55]
[1732315123171,0.8059,3308.3,3308.0,0.55]
[1732315123880,0.8059,3308.3,3308.2,0.55]
[1732315124741,1.20618,3308.4,3308.2,0.55]
[1732315124942,1.20618,3308.4,3308.3,1.56119891]
[1732315125165,1.20618,3308.4,3308.3,2.11119891]
[1732315125552,1.20618,3308.4,3308.3,2.46476781]
[1732315127058,1.20148197,3308.4,3308.3,2.46476781]
[1732315130056,1.20148197,3308.4,3308.3,3.23846781]
[1732315130704,0.8059,3310.7,3308.6,1.3237]
[1732315130855,1.201482,3309.2,3309.0,0.55]
[1732315131057,1.201482,3309.2,3309.1,0.93069891]
[1732315131491,1.201482,3309.2,3309.1,1.75529891]
[1732315131678,1.201482,3309.2,3309.1,3.29406009]
[1732315132409,1.201482,3309.2,3309.1,1.75529891]
[1732315132580,0.7721,3310.2,3309.1,3.29406009]
[1732315132803,0.7721,3310.2,3309.3,1.59639576]
[1732315133007,1.201482,3310.1,3309.4,0.96090856]
[1732315133308,1.201482,3310.1,3309.6,0.55]
[1732315133464,1.201482,3310.1,3309.7,0.38069891]
[1732315133660,1.201482,3310.1,3309.8,0.55]
[1732315133861,1.201482,3310.1,3309.4,2.11462342]
[1732315133862,0.7721,3310.0,3309.4,2.11462342]
[1732315134063,0.9694582,3310.0,3309.4,2.11462342]
[1732315134262,0.9694582,3310.0,3309.2,1.59857682]
[1732315134697,0.9694582,3310.0,3309.2,0.38069891]
[1732315135909,0.9694582,3310.0,3309.3,0.55]
[1732315136244,0.21709402,3309.9,3309.5,0.55]
[1732315136545,0.21709402,3309.9,3309.5,0.38069891]
[1732315138121,0.7721,3310.0,3309.5,0.38069891]
[1732315139250,0.7721,3310.0,3309.6,0.55]
[1732315139458,0.7721,3310.0,3309.3,0.55]
[1732315140268,0.7721,3310.0,3309.3,0.93674591]
[1732315140565,0.9694582,3310.0,3309.2,1.59857682]
[1732315140772,0.9694582,3310.0,3308.2,0.03021367]
[1732315140773,0.776,3309.9,3308.9,0.35653225]
[1732315140933,0.776,3309.9,3308.6,0.35653225]
[1732315143077,0.776,3309.9,3308.0,1.59332094]
[1732315143078,0.786,3309.9,3308.0,1.59332094]
[1732315143232,0.776,3309.7,3308.1,0.35653225]
[1732315143428,1.05661587,3309.6,3308.1,0.35653225]
[1732315143634,1.06674524,3309.5,3308.1,0.35653225]
[1732315143830,0.776,3309.3,3308.1,0.35653225]
[1732315144130,0.776,3309.1,3307.1,1.90746579]
[1732315144357,0.776,3308.8,3307.1,0.35653225]
[1732315144871,0.776,3308.6,3307.1,0.35653225]
[1732315145244,0.786,3308.6,3307.1,0.35653225]
[1732315145447,0.776,3308.4,3307.1,0.35653225]
[1732315146047,0.776,3308.2,3307.1,0.35653225]
[1732315147041,0.776,3308.2,3307.2,0.55]
[1732315147346,0.776,3308.2,3307.4,0.55]
[1732315147534,0.776,3308.2,3307.5,0.38676331]
[1732315147872,0.776,3308.2,3307.5,0.35653225]
[1732315148583,0.776,3308.2,3307.5,0.38676332]
[1732315148736,0.776,3308.2,3307.5,0.35653225]
[1732315148930,0.776,3308.2,3307.5,0.38676332]
[1732315149329,0.776,3308.2,3307.5,0.35653225]
[1732315151779,0.776,3308.2,3307.6,0.03022841]
[1732315151963,0.776,3308.2,3307.6,0.35653225]
[1732315154284,0.776,3308.1,3307.6,0.35653225]
[1732315156349,0.8053,3308.0,3306.2,0.03023625]
[1732315156685,0.8053,3308.0,3306.0,0.03023805]
[1732315156836,0.96343,3307.9,3306.0,0.03023805]
[1732315157178,0.8053,3307.9,3306.0,0.35968696]
[1732315157496,0.8053,3307.9,3306.1,0.32944891]
[1732315158068,0.8053,3307.9,3306.0,0.03023805]
[1732315160374,0.8053,3307.9,3305.9,2.59326898]
[1732315160915,0.8053,3307.9,3306.0,0.03024076]
[1732315161118,0.8053,3307.9,3306.0,0.35968967]
[1732315161675,0.8053,3307.9,3305.9,2.26382007]
[1732315162022,0.96343,3307.9,3306.1,0.03024076]
[1732315162325,0.8053,3307.9,3306.3,2.06208243]
[1732315162529,0.8053,3307.9,3306.5,1.50290113]
[1732315162672,0.8053,3307.9,3306.4,0.03023663]
[1732315162872,0.96343,3307.9,3306.4,0.03023663]
[1732315163093,0.8053,3307.9,3306.4,0.03023663]
[1732315166924,0.8053,3307.9,3306.3,1.51208243]
[1732315167128,0.8053,3307.9,3306.2,1.58656595]
[1732315168011,0.8053,3307.9,3306.1,1.55878373]
[1732315168435,0.7748,3307.7,3305.6,0.32944891]
[1732315168650,0.55,3307.4,3305.1,1.52578071]
[1732315168850,0.01,3307.8,3305.1,1.52578071]
[1732315168851,0.7748,3307.1,3305.1,1.52578071]
[1732315170813,0.8237,3306.9,3305.1,1.52578071]
[1732315172310,0.8237,3306.9,3305.3,1.53457938]
[1732315172511,0.8237,3306.9,3304.2,0.32944891]
[1732315172512,0.8237,3306.9,3305.9,1.51282007]
[1732315172736,0.8237,3306.9,3306.0,1.89640438]
[1732315173422,0.8237,3306.9,3306.0,1.56695547]
[1732315173715,0.8237,3306.9,3306.2,0.55]
[1732315173929,0.8237,3306.9,3306.3,0.03023851]
[1732315174139,0.8237,3306.9,3306.4,0.03023778]
[1732315174329,0.81303936,3306.9,3306.2,0.58023832]
[1732315175083,0.01,3309.0,3306.2,0.58023832]
[1732315175084,0.01,3308.7,3306.2,0.58023832]
[1732315175230,0.02,3309.0,3306.2,0.58023832]
[1732315175431,0.01,3308.7,3306.2,0.58023832]
[1732315175676,0.02,3309.0,3306.2,0.58023832]
[1732315175845,0.01,3308.7,3306.2,0.58023832]
[1732315176856,0.34640713,3308.6,3306.2,0.03023832]
[1732315177227,0.7929,3308.0,3306.2,0.03023832]
[1732315177441,0.7929,3307.8,3306.0,1.53671583]
[1732315177674,0.7929,3307.8,3306.0,2.11695505]
[1732315178184,0.7929,3307.8,3306.0,1.56695505]
[1732315178378,0.7929,3307.8,3306.0,1.53671583]
[1732315179943,0.7929,3307.8,3306.1,0.55]
[1732315180143,0.7929,3307.8,3306.0,1.53671583]
[1732315180144,0.7929,3307.8,3305.7,1.54410758]
[1732315180371,0.7929,3307.6,3305.3,1.53457938]
[1732315180573,1.12240713,3308.1,3305.5,1.55500466]
[1732315180574,0.28086265,3307.5,3305.5,1.55500466]
[1732315180875,0.7929,3307.4,3305.5,1.55500466]
[1732315181245,0.7929,3307.4,3305.6,0.0302455]
[1732315181636,0.7929,3307.3,3304.9,1.53488997]
[1732315181837,0.7929,3307.3,3305.1,1.52578071]
[1732315182379,0.7929,3307.3,3305.2,0.03024915]
[1732315182845,0.7929,3307.3,3305.3,0.32944891]
[1732315183033,0.7929,3307.3,3305.4,0.03024605]
[1732315183239,0.7929,3307.3,3305.4,0.35969496]
[1732315183479,0.7929,3307.3,3305.9,2.06282007]
[1732315183683,0.7929,3307.3,3306.0,0.90968938]
[1732315184265,0.7929,3307.3,3306.0,2.44640521]
[1732315184432,0.7929,3307.3,3306.1,1.55878373]
[1732315184776,0.7929,3307.3,3306.2,0.93538055]
[1732315186547,0.7929,3307.3,3306.2,0.5802374]
[1732315187150,0.8061,3305.5,3305.2,0.00644458]
[1732315187374,0.8061,3305.1,3303.9,1.5747095]
[1732315187546,0.19945661,3305.6,3304.9,1.54444849]
[1732315188053,0.19945661,3305.6,3303.7,0.03025463]
[1732315188279,0.19945661,3305.6,3303.8,2.59954213]
[1732315188480,0.19945661,3305.6,3303.9,1.33305015]
[1732315188680,0.19945661,3305.6,3303.9,1.29431568]
[1732315189087,0.19945661,3305.6,3304.0,1.03983601]
[1732315189386,0.19945661,3305.6,3304.1,1.03133401]
[1732315189571,0.19945661,3305.6,3304.2,0.757117]
[1732315189768,0.19945661,3305.6,3304.3,0.03025163]
[1732315190149,0.19945661,3305.6,3304.5,0.55]
[1732315190463,1.00555661,3305.6,3304.7,0.55]
[1732315190669,1.00555661,3305.6,3304.8,0.6605829]
[1732315190855,1.00555661,3305.6,3304.8,1.18946746]
[1732315191987,1.00555661,3305.6,3304.9,0.55]
[1732315192157,1.00555661,3305.6,3305.0,0.03024926]
[1732315192490,1.00555661,3305.6,3305.1,0.55]
[1732315192698,1.00555661,3305.6,3305.2,0.0302499]
[1732315193604,0.01,3306.5,3305.2,0.0302499]
[1732315196530,0.01,3306.4,3305.1,0.58024803]
[1732315196677,0.7592,3306.3,3305.1,0.58024803]
[1732315197620,0.7592,3306.2,3305.1,0.03024803]
[1732315197781,0.7692,3306.2,3305.1,0.03024803]
[1732315199095,0.7592,3306.1,3305.1,0.50244585]
[1732315199679,0.03023747,3306.0,3304.8,0.58024847]
[1732315199877,0.7592,3306.1,3304.8,0.58024847]
[1732315200080,0.03023747,3306.0,3304.8,0.58024847]
[1732315200280,0.7592,3306.1,3304.9,0.55]
[1732315200506,0.7592,3306.1,3304.9,0.47219782]
[1732315201021,0.7592,3306.1,3305.0,0.58024978]
[1732315202085,0.04023747,3306.0,3304.9,0.47219782]
[1732315207431,0.01,3305.8,3304.9,0.47219782]
[1732315209813,0.91204,3306.1,3304.9,0.47219782]
[1732315209814,0.7592,3306.1,3305.0,0.80005115]
[1732315210138,0.7692,3306.2,3305.0,0.80005115]
[1732315210139,0.7692,3306.2,3305.1,1.02219782]
[1732315210316,0.7692,3306.2,3305.2,0.21247106]
[1732315210519,0.7692,3306.2,3305.3,0.47219782]
[1732315210722,0.7692,3306.2,3305.4,0.03024628]
[1732315211057,0.7692,3306.2,3305.5,0.47219782]
[1732315211651,0.8308,3306.9,3305.6,0.7632]
[1732315211856,0.472197,3306.4,3305.7,0.50243976]
[1732315212855,0.8308,3306.9,3305.7,0.50243976]
[1732315213060,0.8308,3306.8,3305.7,0.50243976]
[1732315215558,0.8308,3306.8,3305.8,0.7632]
[1732315215744,0.8308,3306.8,3305.9,0.5024383]
[1732315227580,0.8308,3306.8,3305.9,0.47219782]
[1732315231591,0.8308,3306.8,3306.0,0.05604845]
[1732315232066,0.8308,3306.8,3306.0,0.52753419]
[1732315232967,0.03023747,3306.7,3306.1,0.47148574]
[1732315233130,0.8308,3306.8,3306.2,0.05638601]
[1732315234167,0.8308,3306.8,3306.2,0.52787175]
[1732315234383,0.8308,3306.8,3306.3,0.47148574]
[1732315234872,0.03023747,3306.7,3306.4,0.05638455]
[1732315236372,0.04023747,3306.7,3306.4,0.05638455]
[1732315236572,0.8149,3306.6,3306.4,0.05638455]
[1732315236778,0.03023747,3306.5,3306.4,0.05638455]
[1732315236950,0.03023747,3306.5,3305.9,0.47148574]
[1732315237432,0.03023747,3306.5,3306.0,0.05638162]
[1732315237649,0.03023747,3306.5,3306.0,0.52786736]
[1732315239245,0.04023747,3306.5,3306.0,0.52786736]
[1732315240744,0.28188487,3306.4,3306.0,0.52786736]
[1732315241089,0.04023747,3306.5,3306.0,0.52786736]
[1732315241377,0.2818933,3306.4,3306.0,0.52786736]
[1732315241588,0.04023747,3306.5,3306.1,0.47148574]
[1732315241813,0.28190108,3306.4,3306.2,0.05641232]
[1732315241982,0.04023747,3306.5,3306.2,0.05641232]
[1732315242179,0.28189776,3306.4,3306.2,0.05641232]
[1732315242383,0.04023747,3306.5,3306.2,0.05641232]
[1732315242711,0.28185918,3306.4,3306.2,0.05641232]
[1732315243024,0.1587984,3306.4,3306.2,0.05641232]
[1732315243610,0.04023747,3306.5,3306.2,0.05641232]
[1732315247372,0.03023747,3306.5,3306.2,0.05641232]
[1732315247576,0.04023747,3306.5,3306.2,0.05641232]
[1732315248780,0.01,3306.5,3306.2,0.05641232]
[1732315248981,0.01,3306.5,3306.2,0.52789806]
[1732315251643,0.04023747,3306.7,3306.3,0.47148574]
[1732315251779,0.01,3306.5,3306.3,0.47148574]
[1732315251980,0.04023747,3306.7,3306.4,0.05647226]
[1732315252182,0.04023747,3306.7,3306.4,0.527958]
[1732315253206,0.03023747,3306.7,3306.4,0.527958]
[1732315253403,0.01,3306.5,3306.4,0.527958]
[1732315253607,0.58023747,3306.7,3306.4,0.527958]
[1732315254236,0.55,3306.7,3306.5,0.47148574]
[1732315254595,0.55,3306.7,3306.6,0.05647226]
[1732315254795,0.83190127,3306.7,3306.6,0.05647226]
[1732315255042,0.83190127,3306.7,3306.5,0.47148574]
[1732315255199,0.55,3306.7,3306.5,0.47148574]
[1732315255399,0.55,3306.7,3306.6,0.05647226]
[1732315255598,0.83191639,3306.7,3306.6,0.05647226]
[1732315257041,0.83191639,3306.7,3306.5,0.47148574]
[1732315257197,0.55,3306.7,3306.6,0.05645764]
[1732315257397,0.55,3306.7,3306.5,0.47148574]
[1732315257398,0.83201315,3306.7,3306.5,0.47148574]
[1732315257599,0.28201315,3306.6,3306.5,0.47148574]
[1732315257794,0.83201315,3306.6,3306.5,0.47148574]
[1732315258240,0.55,3306.7,3306.5,0.47148574]
[1732315258615,0.01,3306.6,3306.5,0.47148574]